Cogmind - Beta 16 @@@ ROGUE MODE // 2025.11.03 @ 18:38:03 Player: Mozco Result: Destroyed by as-26962 with Assembled Heavy Rifle Performance ------------- Evolutions (0) 0 Regions Visited (4) 800 Robots Destroyed (6) 30 Value Destroyed (61) 61 Prototype IDs (25) 500 Alien Tech Used (0) 0 Bonus (500) 500 TOTAL SCORE: 1891 Bonus ------- Follower Combat Kills 200 Aligned with FarCom 300 Cogmind --------- Core Integrity 0/250 Matter 285/300 Energy 22/100 System Corruption 0% Temperature Cool (4) Movement Walking (260) Ox2 Location -9/Mines Parts ------- > --- POWER (1) -------- (None) > --- PROPULSION (2) --- Aluminum Leg > --- UTILITY (2) ------ Improved Heat Sink Medium Storage Unit > --- WEAPON (2) ------- Guided Plasma Cannon Longsword +1 > --- INVENTORY (10) --- Light Nuclear Core High-capacity Storage Unit Experimental Sensor Array Light Armor Plating Supersonic Drone Bay (1/1) Medium Laser Particle Gun Beam Cannon Peak State ------------ > --- POWER ------------ (None) > --- PROPULSION ------- Aluminum Leg Aluminum Leg > --- UTILITY ---------- Improved Heat Sink Medium Storage Unit > --- WEAPON ----------- Guided Plasma Cannon Longsword +1 > --- INVENTORY -------- Light Nuclear Core High-capacity Storage Unit Experimental Sensor Array Light Armor Plating Supersonic Drone Bay Medium Laser Particle Gun Beam Cannon [Rating: 24] Favorites ----------- Power Ion Engine Engine Ion Engine Propulsion Aluminum Leg Leg Aluminum Leg Utility Small Storage Unit Device Improved Heat Sink Storage Small Storage Unit Protection Light Armor Plating Weapon Beam Cannon Energy Gun Medium Laser Energy Cannon Beam Cannon Special Weapon Mining Laser Slashing Weapon Longsword +1 Build | -11 -10 -10 -10 -9 ------- Run | Yrd Mat Min Exi Min Slots Evolved . | . . . . . Power . | . . . . . Propulsion . | . . . . . Utility . | . . . . . Weapon . | . . . . . Parts Attached 20 | 6 2 7 2 3 Power 2 | 1 . 1 . . Engine 2 | 1 . 1 . . Core . | . . . . . Reactor . | . . . . . Propulsion 6 | 2 . 2 . 2 Treads . | . . . . . Leg 6 | 2 . 2 . 2 Wheel . | . . . . . Hover . | . . . . . Flight . | . . . . . Utility 6 | 1 1 3 1 . Device 2 | . 1 1 . . Storage 2 | 1 . . 1 . Processor . | . . . . . Hackware . | . . . . . Protection 2 | . . 2 . . Artifact . | . . . . . Weapon 6 | 2 1 1 1 1 Energy Gun 2 | 2 . . . . Energy Cannon 2 | . 1 . . 1 Ballistic Gun . | . . . . . Ballistic Cannon . | . . . . . Launcher . | . . . . . Special Weapon 1 | . . 1 . . Impact Weapon . | . . . . . Slashing Weapon 1 | . . . 1 . Piercing Weapon . | . . . . . Special Melee Weapon . | . . . . . Unidentified Prototypes . | . . . . . Parts Lost 4 | . . . . 4 Power 1 | . . . . 1 Propulsion 3 | . . . . 3 Utility . | . . . . . Weapon . | . . . . . Highest Loss Streak 4 | . . . . 4 To Critical Strikes . | . . . . . Average Backups 6 | . 2 4 8 9 Power . | . . . 1 1 Propulsion . | . . . 2 1 Utility 2 | . 2 2 2 4 Weapon 1 | . . 1 3 3 Tool/Special . | . . . . . Unused Backups 7 | . . . . 7 Power 1 | . . . . 1 Propulsion . | . . . . . Utility 4 | . . . . 4 Weapon 2 | . . . . 2 Tool/Special . | . . . . . Average Slot Usage (%) 99 | . 98 100 100 97 Engine 13 | . 14 14 14 11 Leg 27 | . 28 28 28 27 Device 11 | . 12 9 14 14 Storage 14 | . 14 14 14 14 Protection 2 | . . 4 . . Energy Gun 9 | . 18 13 . . Energy Cannon 13 | . 9 14 14 14 Special Weapon 2 | . . . 10 . Slashing Weapon 2 | . . . 3 14 Peak Build Rating 24 | 6 7 10 18 24 Average Rating 9 | 4 6 7 12 18 On Entrance 8 | . 6 7 10 18 Avg Prop Armor Cover (%) . | . . . . . Naked Turns . | . . . . . Heaviest Build 24 | 13 16 18 22 24 Greatest Support 20 | 20 20 20 20 20 Greatest Overweight (x) 4 | 4 . . 1 2 Average Overweight (x) . | . . . . . Largest Inventory Capacity 10 | 8 8 8 10 10 Average Capacity 8 | 7 8 8 9 10 Most Carried 10 | . 4 8 10 10 Average Carried 6 | . 2 4 8 9 Final Capacity 10 | 8 8 8 10 10 Final Carried 10 | . 4 8 10 8 Class Distribution -------------------- 54% | Mutant 45% | Scavenger-Mutant Dominant Class ---------------- Mutant | -10/Materials Mutant | -10/Mines Scavenger-Mutant | -10/Exiles Scavenger-Mutant | -9/Mines Resources | -11 -10 -10 -10 -9 ----------- Run | Yrd Mat Min Exi Min Matter Collected 400 | 259 . 101 . 40 Remotely . | . . . . . Salvage Created 197 | . . 104 . 93 Parts 10 | . . 10 . . Haulers Intercepted . | . . . . . Recyclers Shooed 1 | . 1 . . . Parts Field Recycled . | . . . . . Retrieved Matter . | . . . . . Parts Self-Destructed . | . . . . . Prevented . | . . . . . Parts Restored . | . . . . . Kills | -11 -10 -10 -10 -9 ------- Run | Yrd Mat Min Exi Min Combat Hostiles Destroyed 11 | . . 5 . 6 Melee 5 | . . . . 5 Cannons 6 | . . 5 . 1 Classes Destroyed 3 | . . 3 . . Tunneler 3 | . . 3 . . Swarmer 3 | . . 3 . . Assembled 8 | . . 2 . 6 Best Kill Streak 6 | . . 3 . 6 Combat Bots Only 6 | . . 3 . 6 Max Kills in Single Turn 1 | . . 1 . 1 Gunslinging . | . . . . . Exploded . | . . . . . Melee 1 | . . . . 1 Uniques/NPCs Destroyed . | . . . . . Combat | -11 -10 -10 -10 -9 -------- Run | Yrd Mat Min Exi Min Hostile Shots Fired 89 | . . 25 . 64 Missed 18 | . . 4 . 14 Hits 71 | . . 21 . 50 Melee 2 | . . . . 2 Projectile 69 | . . 21 . 48 Damage Taken 918 | . . 202 . 716 Core 260 | . . 46 . 214 Absorbed by Shields . | . . . . . Core Remaining (%) 100 | 100 . . . . Volleys Fired 48 | . 1 46 . 1 Largest 2 | . 2 2 . 1 Hottest 120 | . 110 110 . 120 Shots Fired 53 | . 2 50 . 1 Gun 5 | . 1 4 . . Cannon 46 | . 1 44 . 1 Launcher . | . . . . . Special 2 | . . 2 . . Kinetic . | . . . . . Thermal 53 | . 2 50 . 1 Explosive . | . . . . . Electromagnetic . | . . . . . Robot Hit Streak 10 | . 2 10 . 2 Robot Miss Streak 3 | . . 3 . . Penetration Max . | . . . . . Secondary Targets . | . . . . . Shots Hit Robots 43 | . 2 29 . 12 Core Hits 13 | . . 10 . 3 Critical Kills . | . . . . . Critical Parts Destroyed . | . . . . . Critical Strikes . | . . . . . Melee Attacks 15 | . . . . 15 Impact . | . . . . . Slashing 15 | . . . . 15 Piercing . | . . . . . Sneak Attacks . | . . . . . Combat Hostiles . | . . . . . Follow-up Attacks . | . . . . . Damage Inflicted 1210 | . 30 501 . 679 Guns 54 | . 13 41 . . Cannons 513 | . 17 459 . 37 Explosions . | . . . . . Melee 642 | . . . . 642 Ramming 1 | . . 1 . . Kinetic . | . . . . . Thermal 567 | . 30 500 . 37 Explosive . | . . . . . Electromagnetic . | . . . . . Impact . | . . . . . Slashing 642 | . . . . 642 Piercing . | . . . . . Highest Corruption . | . . . . . Average Corruption . | . . . . . Corruption Purged . | . . . . . Corruption Blocked . | . . . . . Overload Shots . | . . . . . Overflow Damage 129 | . . . . 129 Projectiles . | . . . . . Explosions . | . . . . . Melee 129 | . . . . 129 Knockbacks . | . . . . . Impact . | . . . . . Kinetic . | . . . . . Secondary . | . . . . . Self-Inflicted Damage . | . . . . . Shots . | . . . . . Rammed . | . . . . . Targets Rammed 1 | . . 1 . . Kicked 1 | . . 1 . . Crushed . | . . . . . Highest Temperature 228 | . 18 228 . 42 Average Temperature 78 | . 12 83 . 22 Received Heat Transfer 100 | . . . . 100 Siege Activations . | . . . . . Martial Activations . | . . . . . Shielding Activations . | . . . . . Robots Disrupted . | . . . . . Combat Hostiles . | . . . . . Robots Corrupted . | . . . . . Combat Hostiles . | . . . . . Parts Fried . | . . . . . Impact Corruptions . | . . . . . Robots Melted . | . . . . . Combat Hostiles . | . . . . . Parts Melted 2 | . . 2 . . Heat Transferred 1227 | . 74 1073 . 80 Parts Sabotaged . | . . . . . Parts Stolen . | . . . . . Parts Stripped . | . . . . . Power Chain Reactions . | . . . . . Alert | -11 -10 -10 -10 -9 ------- Run | Yrd Mat Min Exi Min Maximum Alert Level . | . . . . . Low Security (%) 100 | 100 100 100 . 100 Level 1 . | . . . . . Level 2 . | . . . . . Level 3 . | . . . . . Level 4 . | . . . . . Level 5 . | . . . . . High Security . | . . . . . Max Security . | . . . . . Peak Influence 75 | . 30 75 . . Initial . | . . . . . Average 12 | . 3 17 . . Influence Increases 337 | . 44 293 . . Destroy 0b10 Robot/C 220 | . . 220 . . Destroy 0b10 Robot/NC 15 | . . 15 . . Destroy Leader 10 | . . 10 . . Allied During Kill 18 | . . 18 . . Successful Hack 44 | . 44 . . . Disable Machine 15 | . . 15 . . Lose Combat Pursuer 15 | . . 15 . . Influence Decreases 337 | . 44 292 1 . Entered New Map 1 | . . . 1 . Time Decay 316 | . 44 272 . . Lost Ally 20 | . . 20 . . Squads Dispatched . | . . . . . Investigation . | . . . . . Extermination . | . . . . . Reinforcement . | . . . . . Assault . | . . . . . Garrison . | . . . . . Intercept . | . . . . . Searches Triggered . | . . . . . Construction Impeded . | . . . . . Haulers Reinforced . | . . . . . Active Scanning Responses . | . . . . . Cargo Convoy Interrupts . | . . . . . Stealth | -11 -10 -10 -10 -9 --------- Run | Yrd Mat Min Exi Min Distress Signals 1 | . . . . 1 Communications Jammed . | . . . . . Distress Signals . | . . . . . Times Spotted 21 | . 1 9 . 11 Peak Tracking Total 4 | . 1 3 . 4 Tactical Retreats 3 | . . 1 . 2 Traps | -11 -10 -10 -10 -9 ------- Run | Yrd Mat Min Exi Min Traps Triggered . | . . . . . Indirectly . | . . . . . Trap Hack Attempts . | . . . . . Triggered . | . . . . . Disarmed . | . . . . . Reprogrammed . | . . . . . Reused . | . . . . . Traps Extracted . | . . . . . Installed . | . . . . . Triggered . | . . . . . Machines | -11 -10 -10 -10 -9 ---------- Run | Yrd Mat Min Exi Min Machines Disabled 1 | . . 1 . . Max in Single Turn 1 | . . 1 . . Machines Repaired . | . . . . . Machines Dismantled . | . . . . . Machines Sabotaged . | . . . . . Overloaded Fab Kills . | . . . . . Hacking | -11 -10 -10 -10 -9 --------- Run | Yrd Mat Min Exi Min Machines Accessed 6 | . 5 . 1 . Terminals 5 | . 5 . . . Fabricators . | . . . . . Repair Stations . | . . . . . Recycling Units . | . . . . . Scanalyzers . | . . . . . Garrison Access . | . . . . . Total Hacks 26 | . 25 . 1 . Successful 8 | . 7 . 1 . Failed 17 | . 17 . . . Catastrophic 1 | . 1 . . . Database Lockouts 1 | . 1 . . . Manual 23 | . 22 . 1 . Terminals 25 | . 25 . . . Fabricators . | . . . . . Repair Stations . | . . . . . Recycling Units . | . . . . . Scanalyzers . | . . . . . Garrison Access . | . . . . . Terminal Hacks 5 | . 4 . 1 . Robot Analysis 3 | . 3 . . . Prototype ID Bank 1 | . 1 . . . Proto ID Catalog 1 | . . . 1 . Fabricator Hacks . | . . . . . Repair Station Hacks . | . . . . . Recycling Unit Hacks . | . . . . . Scanalyzer . | . . . . . Garrison Access Hacks . | . . . . . Unauthorized Hacks 3 | . 3 . . . Terminals 3 | . 3 . . . Botnet 2 | . 2 . . . Operators 1 | . 1 . . . Fabricators . | . . . . . Repair Stations . | . . . . . Recycling Units . | . . . . . Scanalyzers . | . . . . . Garrison Access . | . . . . . Data Cores Recovered . | . . . . . Used . | . . . . . Hacking Detections 5 | . 5 . . . Full Trace Events 1 | . 1 . . . Feedback Events . | . . . . . Feedback Blocked . | . . . . . Robot Schematics Acquired . | . . . . . Robots Built . | . . . . . Authchips . | . . . . . Time . | . . . . . Total Robot Build Rating . | . . . . . Part Schematics Acquired . | . . . . . Parts Built . | . . . . . Authchips . | . . . . . Time . | . . . . . Total Part Build Rating . | . . . . . Part Studies Acquired . | . . . . . Parts Repaired . | . . . . . Time . | . . . . . Parts Recycled . | . . . . . Recycled Matter . | . . . . . Retrieved Matter . | . . . . . Retrieved Components . | . . . . . Parts Scanalyzed . | . . . . . Part Schematics Acquired . | . . . . . Parts Damaged . | . . . . . Bothacking | -11 -10 -10 -10 -9 ------------ Run | Yrd Mat Min Exi Min Used RIF Installer . | . . . . . Robots Hacked . | . . . . . Non-combat . | . . . . . Combat . | . . . . . Robot Hacks Applied . | . . . . . Relay Couplers Released . | . . . . . Fabnet Peak Effective % . | . . . . . Robots Rewired . | . . . . . Allies Hacked . | . . . . . Hacks Repelled . | . . . . . Allies | -11 -10 -10 -10 -9 -------- Run | Yrd Mat Min Exi Min Total Allies 3 | . . 3 . . Largest Group 3 | . . 3 1 1 Highest-Rated Group 40 | . . 40 16 16 Highest-Rated Ally 16 | . . 16 16 16 Total Orders . | . . . . . Ally Attacks 44 | . . 44 . . Total Damage 437 | . . 437 . . Kills 8 | . . 8 . . Allies Corrupted . | . . . . . Allies Melted . | . . . . . Intel | -11 -10 -10 -10 -9 ------- Run | Yrd Mat Min Exi Min Active Infowar (turns) . | . . . . . Robot Analysis Total 3 | . 3 . . . Derelict Logs Recovered 2 | . . 2 . . Drone Launches . | . . . . . Drone Recoveries . | . . . . . Exploration | -11 -10 -10 -10 -9 ------------- Run | Yrd Mat Min Exi Min Turns Passed 2997 | 59 404 1478 731 325 Spaces Moved 1905 | 39 328 833 546 159 Core 10 | 10 . . . . Treads . | . . . . . Legs 1895 | 29 328 833 546 159 Wheels . | . . . . . Hover . | . . . . . Flight . | . . . . . Fastest Speed 50 | 50 120 120 120 120 Average Speed 128 | 130 120 120 132 181 Slowest Speed 260 | 250 120 120 190 260 Overloaded Moves . | . . . . . Propulsion Burnouts . | . . . . . Robots Hopped . | . . . . . Potential Cave-ins . | . . . . . Cave-ins Triggered . | . . . . . Exploration Rate (%) 52 | 4 53 99 76 32 Regions Visited 4 Branch Regions 3 Pre-discovered Areas 2 | . . 2 . . Known Exits Taken . | . . . . . Unknown Exits Taken 4 | 1 1 1 1 . Scrap Searched 2 | . . 1 . 1 Spaces Dug . | . . . . . Terrain Destroyed . | . . . . . Melee . | . . . . . Projectile . | . . . . . AOE . | . . . . . Terrain Rammed . | . . . . . Walls Destroyed . | . . . . . Machines Disabled . | . . . . . Actions | -11 -10 -10 -10 -9 --------- Run | Yrd Mat Min Exi Min Total 2372 | 44 336 1257 555 180 Wait 360 | . 1 359 . . Move 1901 | 38 327 832 545 159 Hop . | . . . . . Pick Up 14 | . 4 5 4 1 Fast Attach 9 | 6 2 . 1 . Attach 2 | . . . . 2 Detach . | . . . . . Swap 11 | . . 9 1 1 Drop 11 | . 1 5 4 1 Fire 48 | . 1 46 . 1 Melee 15 | . . . . 15 Ram . | . . . . . Kick 1 | . . 1 . . Crush . | . . . . . Escape Stasis . | . . . . . Rewire . | . . . . . Trap . | . . . . . Miscellaneous . | . . . . . Route ------- -11/Scrapyard -10/Materials (discovered 2 exits: [*Mat] / [*Min]) -10/Mines (discovered 4 exits: [*Mat x2] / *Exi / [*Sub]) -10/Exiles -9/Mines History --------- Turn | Location | Event 6 | -11/Scrapyard | Discovered new exit (range 15) 60 | -11/Scrapyard | Entered Materials 204 | -10/Materials | Discovered new exit (range 3) 304 | -10/Materials | Build established: Mutant 394 | -10/Materials | Discovered new exit (range 7) 455 | -10/Materials | Central database locked down 464 | -10/Materials | Entered Mines 473 | -10/Mines | Discovered new exit (range 11) 598 | -10/Mines | Learned location of Storage (-7) 870 | -10/Mines | Discovered new exit (range 4) 884 | -10/Mines | Assisted by bots powering up and referring to "LRC-V3" 984 | -10/Mines | Discovered new exit (range 6) 1074 | -10/Mines | Excavation squad dispatched 1074 | -10/Mines | A large section of the Mines collapsed 1324 | -10/Mines | Excavation squad dispatched 1894 | -10/Mines | Build established: Scavenger-Mutant 1937 | -10/Mines | Deemed a non-threat by the Exiles lab entrance 1937 | -10/Mines | Discovered new exit (range 5) 1942 | -10/Mines | Entered Exiles 1942 | -10/Exiles | Accompanied by 1 ally 1971 | -10/Exiles | Met 8R-AWN 1993 | -10/Exiles | Met EX-HEX 2025 | -10/Exiles | Met EX-BIN 2073 | -10/Exiles | Aligned with FarCom system 2074 | -10/Exiles | Given EX-Vault access code 2107 | -10/Exiles | Met EX-DEC 2245 | -10/Exiles | Visited The Gauntlet 2466 | -10/Exiles | Opened EX-Vault 2472 | -10/Exiles | Found Longsword +1 2476 | -10/Exiles | Found Gui. Plasma Cannon 2483 | -10/Exiles | Found Supersonic Drone Bay 2528 | -10/Exiles | Warned to stay clear of 0b10 Research branches 2650 | -10/Exiles | Discovered new exit (range 14) 2673 | -10/Exiles | Stole three prototypes: Longsword +1, Supersonic Drone Bay, Gui. Plasma Cannon 2673 | -10/Exiles | Entered Mines 2673 | -9/Mines | Accompanied by 1 ally 2770 | -9/Mines | Found a damaged Exp. Sensor Array with a note attached 2780 | -9/Mines | Found Prototype Device 2855 | -9/Mines | Assembled infested the area 2860 | -9/Mines | Assisted by a Guerilla fighting off Assembled 2973 | -9/Mines | Core integrity fell below 50% 2988 | -9/Mines | Core integrity fell below 20% 2998 | -9/Mines | Destroyed by as-26962 with Assembled Heavy Rifle Last Messages --------------- 02888_ U-05 Engineer lays Concrete. 02923_ as-96653 sneak attacks. 02923_ K-01 Serf destroyed. 02930_ Destroyed Asb. Hover Unit. 02932_ as-96653 destroyed. 02932_ R-06 Scavenger destroyed. 02941_ Ion Engine destroyed. 02942_ Destroyed Asb. F-torch. 02942_ as-11200 destroyed. 02950_ Aluminum Leg destroyed. 02951_ Destroyed Asb. Rifle. 02951_ as-10990 destroyed. 02954_ Acquired 10 matter. 02957_ Destroyed Asb. Rifle. 02971_ Destroyed Asb. Hover Unit. 02971_ as-42474 destroyed. 02976_ Aluminum Leg destroyed. 02986_ as-83990 destroyed. 02995_ as-15285 destroyed. 02996_ Aluminum Leg destroyed. Map ----- +----------------------------------------------------+ | ##????????????????????????????????????????????? | | #????????????????????????????????????????????? | | #????????????????????????????????????????????? | | #????????????????????????????????????????????? | | ## #####????????????????????????????????????????? | | ?# #????????????????????????????????????????? | | ?# #??####??????????????????????????????????? | | ?##### #### ##?????????????????????????????????? | | ?????# ##????????????????????????????????? | | ?????# % ###??????????????????????????????? | | ###?## ! ##?????????????????????????????? | | # ## !%! #####?????????????????????????? | | # ##????????????????????????? | | ### =%* *% ###??????????????????????? | | ??### ##=%! ##?????????????????????? | | ????## ######## % #?????????????????????? | | ????## ##??####### #####?????????????????? | | ???## #### ### #???????????????? | | #### ### ###### #???????????????? | | # #?# ##?????????????????????? | | #?## ##????????????????????? | | ##??#% ##???????????????????? | | ###??## #???????????????????? | | ## ##????# #???????????????????? | | #### ### ###?????# ##???????????????????? | | #??###### #???????# @ ##????????????????????? | | ##????# #???????## a%#?????????????????????? | | ###?????# #????????## #????????????????????? | | #???????# ####?????????# ???????????????????? | | ????????# #???????????? #??????????????????? | | ????????# #???????????? ###??????????????????? | | ????????# #????????????#####????????????????????? | | ???????## ##????????????????????????????????????? | | ???????# ##???????????????????????????????????? | | ??????## #???????????????????????????????????? | | #?????# ##??????????????????????????????????? | | ###??# ####???????????????????????????????? | | ### #???????????????????????????????? | | ## ## #???????????????????????????????? | | #??#???????????????????????????????? | | #??????????????????????????????????? | | ?????????????????????????????????? | | = ##??????????????????????????????? | | ## [% #????????????????????????????? | | #?## * #????????????????????????????? | | #???# % #?????????????????????????????? | | ????# #??????????????????????????????? | | ????### # #??????????????????????????????? | | ???????#?" * #??????????????????????????????? | | ????????? =%] "#???????????????????????????????? | +----------------------------------------------------+ Best States ------------- Heat Dissipation 39 Energy Generation 10 Energy Capacity 250 Matter Stores 300 Matter Capacity 300 Sight Range 16 Terrain Scan Density 10 Armor Coverage 150 Evasion (%) 55 Item Schematics ----------------- None Robot Schematics ------------------ None Fabricated ------------ Nothing Repaired ---------- Nothing Studied --------- None Alien Tech Used ----------------- None Achievements -------------- None Challenges ------------ None Game ------ Seed ReactionSpliceReplica Manual? 0 Play Time 00:16:03 Cumulative 200.6 hours Start 2025.11.03 @ 18:10:49 End 2025.11.03 @ 18:38:03 Sessions 1 Manual Loads 0 Difficulty Rogue Special Mode None Game No. 209 Rogue 205 Adventurer 3 Explorer 1 Win Type - Total 1 Types 1/0/0/0/0/0/0/0/0/0 Lore% 71 Gallery% 72 Achievement% 52 Wizard Run 0 Options --------- Layout 0 ASCII 0 Keyboard 0 Movement Mouse Keybinds 0 Fullscreen 2 Font 18/SmallcapsGlow Map View 76x50 Zoom Use 0% Tactical HUD 1 Map Filters NONE Filters NONE Steam 1 RUN: 1db345c9-0deb-4338-be16-c98dd718512d